fUST/lending_fUST_20250707
["ID","MTS","AMOUNT","RATE_DAILY","PERIOD"]
[370057690,1751869851782,-460.0,0.00017564,2]
[370057691,1751869851793,-449.6,0.00017564,2]
[370057692,1751869851802,-460.0,0.00017564,2]
[370057693,1751869851812,-460.0,0.00017564,2]
[370057694,1751869851822,-460.0,0.00017564,2]
[370057695,1751869851831,-460.0,0.00017564,2]
[370057696,1751869851841,-460.0,0.00017564,2]
[370057697,1751869851851,-460.0,0.00017564,2]
[370057698,1751869851860,-460.0,0.00017564,2]
[370057699,1751869851869,-460.0,0.00017564,2]
[370057700,1751869851878,-460.0,0.00017564,2]
[370057701,1751869851888,-372.83651231,0.00017564,2]
[370057702,1751869851898,-460.0,0.00017564,2]
[370057703,1751869851907,-460.0,0.00017564,2]
[370057704,1751869851916,-419.43093692,0.00017564,2]
[370057705,1751869851925,-494.61102449,0.00017564,2]
[370057706,1751869851935,-460.0,0.00017564,2]
[370057707,1751869851944,-460.0,0.00017564,2]
[370057708,1751869851953,-460.0,0.00017564,2]
[370057709,1751869851962,-460.0,0.00017564,2]
[370057710,1751869851972,-460.0,0.00017564,2]
[370057711,1751869851982,-460.0,0.00017564,2]
[370057712,1751869851991,-460.0,0.00017564,2]
[370057713,1751869852001,-460.0,0.00017564,2]
[370057714,1751869852011,-460.0,0.00017564,2]
[370057715,1751869852021,-460.0,0.00017564,2]
[370057716,1751869852032,-500.0,0.00017564,2]
[370057717,1751869852041,-460.0,0.00017564,2]
[370057718,1751869852050,-279.35576107,0.00017564,2]
[370057719,1751869852060,-460.0,0.00017564,2]
[370057720,1751869852070,-460.0,0.00017564,2]
[370057721,1751869852079,-460.0,0.00017564,2]
[370057722,1751869852090,-460.0,0.00017564,2]
[370057723,1751869852099,-460.0,0.00017564,2]
[370057724,1751869852109,-258.35864034,0.00017564,2]
[370057725,1751869852118,-460.0,0.00017564,2]
[370057726,1751869852129,-460.0,0.00017564,2]
[370057727,1751869852139,-460.0,0.00017564,2]
[370057728,1751869852150,-460.0,0.00017564,2]
[370057729,1751869852161,-460.0,0.00017564,2]
[370057730,1751869852171,-460.0,0.00017564,2]
[370057731,1751869852182,-460.0,0.00017564,2]
[370057732,1751869852192,-460.0,0.00017564,2]
[370057733,1751869852201,-542.74,0.00017564,2]
[370057734,1751869852211,-460.0,0.00017564,2]
[370057735,1751869852220,-471.23642678,0.00017564,2]
[370057736,1751869852229,-460.0,0.00017564,2]
[370057737,1751869852239,-460.0,0.00017564,2]
[370057738,1751869852248,-460.0,0.00017564,2]
[370057739,1751869852257,-460.0,0.00017564,2]
[370057740,1751869852267,-460.0,0.00017564,2]
[370057741,1751869852276,-460.0,0.00017564,2]
[370057742,1751869852285,-575.7,0.00017564,2]
[370057743,1751869852295,-460.0,0.00017564,2]
[370057744,1751869852305,-465.90319885,0.00017564,2]
[370057745,1751869852315,-460.0,0.00017564,2]
[370057746,1751869852324,-460.0,0.00017564,2]
[370057747,1751869852334,-460.0,0.00017564,2]
[370057748,1751869852344,-460.0,0.00017564,2]
[370057749,1751869852354,-464.24654429,0.00017564,2]
[370057750,1751869852363,-460.0,0.00017564,2]
[370057751,1751869852372,-460.0,0.00017564,2]
[370057752,1751869852381,-460.0,0.00017564,2]
[370057753,1751869852391,-460.0,0.00017564,2]
[370057754,1751869852400,-464.95466168,0.00017565,2]
[370057755,1751869852409,-567.18326752,0.00017565,2]
[370057756,1751869852418,-461.47260987,0.00017565,2]
[370057757,1751869852428,-360.6202114,0.00017565,2]
[370057758,1751869852437,-462.49310866,0.00017565,2]
[370057759,1751869852446,-460.0,0.00017565,2]
[370057760,1751869852457,-1000.0,0.00017565,2]
[370057761,1751869852466,-467.53287425,0.00017565,2]
[370057762,1751869852476,-460.0,0.00017565,2]
[370057763,1751869852486,-463.11705964,0.00017565,2]
[370057764,1751869852495,-460.0,0.00017565,2]
[370057765,1751869852504,-462.88421206,0.00017565,2]
[370057766,1751869852514,-461.24283364,0.00017565,2]
[370057767,1751869852523,-464.66080554,0.00017565,2]
[370057768,1751869852534,-465.10154229,0.00017565,2]
[370057769,1751869852546,-460.0,0.00017565,2]
[370057770,1751869852557,-465.70523006,0.00017565,2]
[370057771,1751869852568,-460.0,0.00017565,2]
[370057772,1751869852577,-460.0,0.00017565,2]
[370057773,1751869852587,-464.91758963,0.00017565,2]
[370057774,1751869852597,-464.18304618,0.00017565,2]
[370057775,1751869852607,-497.49493534,0.00017565,2]
[370057776,1751869852616,-463.86559371,0.00017565,2]
[370057777,1751869852626,-182.23581927,0.00017565,2]
[370057778,1751869852635,-465.6469912,0.00017565,2]
[370057779,1751869852644,-460.0,0.00017565,2]
[370057780,1751869852653,-463.51908869,0.00017565,2]
[370057781,1751869852663,-460.0,0.00017565,2]
[370057782,1751869852672,-463.06184077,0.00017565,2]
[370057783,1751869852683,-163.83091992,0.00017565,2]
[370057784,1751869852693,-460.0,0.00017565,2]
[370057785,1751869852703,-460.0,0.00017565,2]
[370057786,1751869852714,-434.73971417,0.00017565,2]
[370057787,1751869852723,-460.0,0.00017565,2]
[370057788,1751869852734,-460.0,0.00017565,2]
[370057789,1751869852744,-460.0,0.00017565,2]
[370057790,1751869852754,-460.0,0.00017565,2]
[370057791,1751869852764,-460.0,0.00017565,2]
[370057792,1751869852774,-460.0,0.00017565,2]
[370057793,1751869852783,-460.0,0.00017565,2]
[370057794,1751869852793,-460.0,0.00017565,2]
[370057795,1751869852802,-460.0,0.00017565,2]
[370057796,1751869852813,-460.0,0.00017565,2]
[370057797,1751869852822,-460.0,0.00017565,2]
[370057798,1751869852832,-462.73951191,0.00017565,2]
[370057799,1751869852841,-383.4254604,0.00017565,2]
[370057800,1751869852852,-460.0,0.00017565,2]
[370057801,1751869852943,-460.0,0.00017565,2]
[370057802,1751869852953,-460.0,0.00017565,2]
[370057803,1751869852962,-460.0,0.00017565,2]
[370057804,1751869852971,-460.0,0.00017565,2]
[370057805,1751869852980,-460.0,0.00017565,2]
[370057806,1751869852989,-460.0,0.00017565,2]
[370057807,1751869852998,-460.0,0.00017565,2]
[370057808,1751869853007,-460.0,0.00017565,2]
[370057809,1751869853016,-460.0,0.00017565,2]
[370057810,1751869853025,-460.0,0.00017565,2]
[370057811,1751869853035,-460.0,0.00017565,2]
[370057812,1751869853044,-323.0356469,0.00017565,2]
[370057813,1751869853055,-460.0,0.00017565,2]
[370057814,1751869853071,-335.91592976,0.00017565,2]
[370057815,1751869853084,-460.0,0.00017565,2]
[370057816,1751869853093,-460.0,0.00017565,2]
[370057817,1751869853102,-460.0,0.00017565,2]
[370057818,1751869853111,-460.0,0.00017565,2]
[370057819,1751869853121,-460.0,0.00017565,2]
[370057820,1751869853129,-460.0,0.00017565,2]
[370057821,1751869853138,-460.0,0.00017565,2]
[370057822,1751869853148,-463.05577914,0.00017565,2]
[370057823,1751869853158,-462.48594329,0.00017565,2]
[370057824,1751869853167,-460.0,0.00017565,2]
[370057825,1751869853176,-460.0,0.00017565,2]
[370057826,1751869853185,-460.0,0.00017565,2]
[370057827,1751869853194,-460.0,0.00017565,2]
[370057828,1751869853203,-460.0,0.00017565,2]
[370057829,1751869853213,-460.0,0.00017565,2]
[370057830,1751869853222,-460.0,0.00017565,2]
[370057831,1751869853232,-460.0,0.00017565,2]
[370057832,1751869853241,-460.0,0.00017565,2]
[370057833,1751869853250,-530.47,0.00017565,2]
[370057834,1751869853260,-460.0,0.00017565,2]
[370057835,1751869853269,-460.0,0.00017565,2]
[370057836,1751869853279,-460.0,0.00017565,2]
[370057837,1751869853289,-1015.5,0.00017565,2]
[370057838,1751869853298,-460.0,0.00017565,2]
[370057839,1751869853308,-460.0,0.00017565,2]
[370057840,1751869853319,-460.0,0.00017565,2]
[370057841,1751869853329,-516.75,0.00017565,2]
[370057842,1751869853339,-460.0,0.00017565,2]
[370057843,1751869853348,-1519.51,0.00017565,2]
[370057844,1751869853358,-460.0,0.00017565,2]
[370057845,1751869853368,-460.0,0.00017565,2]
[370057846,1751869853377,-460.0,0.00017565,2]
[370057847,1751869853386,-460.0,0.00017565,2]
[370057848,1751869853396,-379.50050763,0.00017565,2]
[370057849,1751869853407,-460.0,0.00017565,2]
[370057850,1751869853417,-499.9,0.00017565,2]
[370057851,1751869853426,-460.0,0.00017565,2]
[370057852,1751869853437,-489.01,0.00017565,2]
[370057853,1751869853447,-485.90723113,0.00017565,2]
[370057854,1751869853456,-460.0,0.00017565,2]
[370057855,1751869853466,-502.79659212,0.00017565,2]
[370057856,1751869853475,-367.6,0.00017565,2]
[370057857,1751869853484,-460.0,0.00017565,2]
[370057858,1751869853494,-460.0,0.00017565,2]
[370057859,1751869853503,-460.0,0.00017565,2]
[370057860,1751869853512,-379.43816817,0.00017565,2]
[370057861,1751869853521,-288.86,0.00017565,2]
[370057862,1751869853531,-220.49,0.00017565,2]
[370057863,1751869853541,-225.5,0.00017565,2]
[370057864,1751869853551,-460.0,0.00017565,2]
[370057865,1751869853560,-727.81,0.00017565,2]
[370057866,1751869853568,-460.0,0.00017565,2]
[370057867,1751869853579,-460.0,0.00017565,2]
[370057868,1751869853589,-460.0,0.00017566,2]
[370057869,1751869853599,-460.0,0.00017566,2]
[370057870,1751869853610,-460.0,0.00017566,2]
[370057871,1751869853620,-460.0,0.00017566,2]
[370057872,1751869853629,-460.0,0.00017566,2]
[370057873,1751869853640,-460.0,0.00017566,2]
[370057874,1751869853651,-460.0,0.00017566,2]
[370057875,1751869853662,-460.0,0.00017566,2]
[370057876,1751869853674,-460.0,0.00017566,2]
[370057877,1751869853684,-460.0,0.00017566,2]
[370057878,1751869853695,-485.38,0.00017566,2]
[370057879,1751869853706,-460.0,0.00017566,2]
[370057880,1751869853716,-460.0,0.00017566,2]
[370057881,1751869853726,-460.0,0.00017566,2]
[370057882,1751869853738,-460.0,0.00017566,2]
[370057883,1751869853748,-466.78320902,0.00017566,2]
[370057884,1751869853758,-460.0,0.00017566,2]
[370057885,1751869853768,-460.0,0.00017566,2]
[370057886,1751869853778,-460.0,0.00017566,2]
[370057887,1751869853787,-460.0,0.00017566,2]
[370057888,1751869853796,-460.0,0.00017566,2]
[370057889,1751869853807,-460.0,0.00017566,2]
[370057890,1751869853817,-460.0,0.00017566,2]
[370057891,1751869853826,-462.82276082,0.00017566,2]
[370057892,1751869853835,-460.0,0.00017566,2]
[370057893,1751869853845,-508.73,0.00017566,2]
[370057894,1751869853856,-463.26016993,0.00017566,2]
[370057895,1751869853866,-460.0,0.00017566,2]
[370057896,1751869853878,-460.0,0.00017566,2]
[370057897,1751869853888,-460.0,0.00017566,2]
[370057898,1751869853897,-460.0,0.00017566,2]
[370057899,1751869853906,-460.0,0.00017566,2]
[370057900,1751869853916,-460.0,0.00017566,2]
[370057901,1751869853926,-460.0,0.00017566,2]
[370057902,1751869853935,-460.0,0.00017566,2]
[370057903,1751869853944,-299.52685989,0.00017566,2]
[370057904,1751869853953,-585.49090155,0.00017567,2]
[370057905,1751869853962,-460.0,0.00017567,2]
[370057906,1751869853972,-460.0,0.00017567,2]
[370057907,1751869853983,-460.0,0.00017567,2]
[370057908,1751869853993,-460.0,0.00017837,2]
[370057909,1751869854002,-460.0,0.00017837,2]
[370057910,1751869854011,-460.0,0.00017837,2]
[370057911,1751869854020,-460.0,0.00017837,2]
[370057912,1751869854030,-460.0,0.00017837,2]
[370057913,1751869854039,-460.0,0.00017837,2]
[370057914,1751869854048,-460.0,0.00017837,2]
[370057915,1751869854057,-460.0,0.00017837,2]
[370057916,1751869854067,-510.66,0.00017837,2]
[370057917,1751869854076,-831.93,0.00017837,2]
[370057918,1751869854085,-846.06,0.00017837,2]
[370057919,1751869854094,-220.33,0.00017837,2]
[370057920,1751869854103,-460.0,0.00017837,2]
[370057921,1751869854112,-460.0,0.00017837,2]
[370057922,1751869854121,-460.0,0.00017837,2]
[370057923,1751869854130,-460.0,0.00017837,2]
[370057924,1751869854139,-460.0,0.00017837,2]
[370057925,1751869854148,-460.0,0.00017837,2]
[370057926,1751869854158,-460.0,0.00017837,2]
[370057927,1751869854167,-540.96,0.00017837,2]
[370057928,1751869854176,-460.0,0.00017837,2]
[370057929,1751869854185,-460.0,0.00017837,2]
[370057930,1751869854195,-460.0,0.00017837,2]
[370057931,1751869854206,-460.0,0.00017837,2]
[370057932,1751869854215,-460.0,0.00017837,2]
[370057933,1751869854224,-703.74,0.00017837,2]
[370057934,1751869854233,-460.0,0.00017837,2]
[370057935,1751869854242,-460.0,0.00017838,2]
[370057936,1751869854251,-241.47056953,0.00017838,2]
[370057937,1751869854261,-466.3287997,0.00017838,2]
[370057938,1751869854270,-460.0,0.00017838,2]
[370057939,1751869854279,-460.0,0.00017838,2]
[370057940,1751869854288,-460.0,0.00017838,2]
[370057941,1751869854297,-460.0,0.00017838,2]
[370057942,1751869854306,-460.0,0.00017838,2]
[370057943,1751869854316,-310.46638621,0.00017838,2]
[370057944,1751869854325,-460.0,0.00017838,2]
[370057945,1751869854334,-460.0,0.00017838,2]
[370057946,1751869854343,-460.0,0.00017838,2]
[370057947,1751869854352,-272.66290035,0.00017838,2]
[370057948,1751869854362,-460.0,0.00017838,2]
[370057949,1751869854371,-460.0,0.00017838,2]
[370057950,1751869854380,-460.0,0.00017838,2]
[370057951,1751869854390,-460.0,0.00017838,2]
[370057952,1751869854399,-460.0,0.00017838,2]
[370057953,1751869854408,-597.67593201,0.00017838,2]
[370057954,1751869854418,-460.0,0.00017838,2]
[370057955,1751869854427,-460.0,0.00017838,2]
[370057956,1751869854436,-460.0,0.00017838,2]
[370057957,1751869854446,-460.0,0.00017838,2]
[370057958,1751869854455,-460.0,0.00017838,2]
[370057959,1751869854465,-460.0,0.00017838,2]
[370057960,1751869854474,-460.0,0.00017838,2]
[370057961,1751869854483,-460.0,0.00017838,2]
[370057962,1751869854492,-460.0,0.00017838,2]
[370057963,1751869854501,-470.46337858,0.00017838,2]
[370057964,1751869854511,-460.0,0.00017838,2]
[370057965,1751869854520,-426.61249679,0.00017838,2]
[370057966,1751869854529,-585.42438112,0.00017838,2]
[370057967,1751869854538,-460.0,0.00017838,2]
[370057968,1751869854548,-281.52574714,0.00017838,2]
[370057969,1751869854557,-603.90767278,0.00017838,2]
[370057970,1751869854567,-460.0,0.00017838,2]
[370057971,1751869854577,-460.0,0.00017838,2]
[370057972,1751869854587,-466.00703262,0.00017838,2]
[370057973,1751869854598,-460.0,0.00017838,2]
[370057974,1751869854609,-460.0,0.00017838,2]
[370057975,1751869854619,-460.0,0.00017838,2]
[370057976,1751869854628,-460.0,0.00017838,2]
[370057977,1751869854638,-460.0,0.00017838,2]
[370057978,1751869854647,-460.0,0.00017838,2]
[370057979,1751869854658,-460.0,0.00017838,2]
[370057980,1751869854669,-460.0,0.00017838,2]
[370057981,1751869854683,-542.74,0.00017838,2]
[370057982,1751869854693,-460.0,0.00017838,2]
[370057983,1751869854704,-465.40722782,0.00017838,2]
[370057984,1751869854713,-460.0,0.00017838,2]
[370057985,1751869854723,-460.0,0.00017838,2]
[370057986,1751869854732,-460.0,0.00017838,2]
[370057987,1751869854741,-460.0,0.00017838,2]
[370057988,1751869854752,-460.0,0.00017838,2]
[370057989,1751869854761,-460.0,0.00017838,2]
[370057990,1751869854770,-460.0,0.00017838,2]
[370057991,1751869854779,-460.0,0.00017838,2]
[370057992,1751869854789,-460.0,0.00017838,2]
[370057993,1751869854798,-466.42872493,0.00017838,2]
[370057994,1751869854807,-460.0,0.00017838,2]
[370057995,1751869854896,-460.0,0.00017838,2]
[370057996,1751869854905,-460.0,0.00017838,2]
[370057997,1751869854914,-463.48560619,0.00017839,2]
[370057998,1751869854926,-465.32339842,0.00017839,2]
[370057999,1751869854936,-461.8432639,0.00017839,2]
[370058000,1751869854946,-460.0,0.00017839,2]
[370058001,1751869854955,-435.20774071,0.00017839,2]
[370058002,1751869854964,-160.76159041,0.00017839,2]
[370058003,1751869854973,-460.0,0.00017839,2]
[370058004,1751869854984,-460.0,0.00017839,2]
[370058005,1751869854994,-460.0,0.00017839,2]
[370058006,1751869855003,-460.0,0.00017839,2]
[370058007,1751869855013,-460.0,0.00017839,2]
[370058008,1751869855024,-460.0,0.00017839,2]
[370058009,1751869855034,-367.10287075,0.00017839,2]
[370058010,1751869855043,-460.0,0.00017839,2]
[370058011,1751869855054,-460.0,0.00017839,2]
[370058012,1751869855068,-460.0,0.00017839,2]
[370058013,1751869855077,-463.94215212,0.00017839,2]
[370058014,1751869855086,-460.0,0.00017839,2]
[370058015,1751869855096,-460.0,0.00017839,2]
[370058016,1751869855107,-460.0,0.00017839,2]
[370058017,1751869855116,-460.0,0.00017839,2]
[370058018,1751869855125,-460.0,0.00017839,2]
[370058019,1751869855134,-460.0,0.00017839,2]
[370058020,1751869855144,-460.0,0.00017839,2]
[370058021,1751869855154,-460.0,0.00017839,2]
[370058022,1751869855163,-460.0,0.00017839,2]
[370058023,1751869855172,-460.0,0.00017839,2]
[370058024,1751869855181,-349.41721594,0.00017839,2]
[370058025,1751869855190,-460.0,0.00017839,2]
[370058026,1751869855200,-460.0,0.00017839,2]
[370058027,1751869855209,-460.0,0.00017839,2]
[370058028,1751869855218,-241.45405256,0.00017839,2]
[370058029,1751869855228,-460.0,0.00017839,2]
[370058030,1751869855239,-460.0,0.00017839,2]
[370058031,1751869855248,-460.0,0.00017839,2]
[370058032,1751869855257,-460.0,0.00017839,2]
[370058033,1751869855266,-460.0,0.00017839,2]
[370058034,1751869855276,-460.0,0.00017839,2]
[370058035,1751869855285,-460.0,0.00017839,2]
[370058036,1751869855294,-530.47,0.00017839,2]
[370058037,1751869855303,-460.0,0.00017839,2]
[370058038,1751869855313,-460.0,0.00017839,2]
[370058039,1751869855322,-1015.5,0.00017839,2]
[370058040,1751869855331,-238.9,0.00017839,2]
[370058041,1751869855340,-460.0,0.00017839,2]
[370058042,1751869855349,-460.0,0.00017839,2]
[370058043,1751869855359,-460.0,0.00017839,2]
[370058044,1751869855368,-1519.51,0.00017839,2]
[370058045,1751869855378,-460.0,0.00017839,2]
[370058046,1751869855388,-460.0,0.00017839,2]
[370058047,1751869855397,-460.0,0.00017839,2]
[370058048,1751869855406,-460.0,0.00017839,2]
[370058049,1751869855416,-460.0,0.00017839,2]
[370058050,1751869855425,-489.01,0.00017839,2]
[370058051,1751869855434,-460.0,0.00017839,2]
[370058052,1751869855444,-460.0,0.00017839,2]
[370058053,1751869855453,-183.5,0.00017839,2]
[370058054,1751869855462,-460.0,0.00017839,2]
[370058055,1751869855472,-460.0,0.00017839,2]
[370058056,1751869855481,-727.81,0.00017839,2]
[370058057,1751869855491,-460.0,0.00017839,2]
[370058058,1751869855500,-603.5404609,0.0001784,2]
[370058059,1751869855509,-460.0,0.0001784,2]
[370058060,1751869855519,-460.0,0.0001784,2]
[370058061,1751869855528,-460.0,0.0001784,2]
[370058062,1751869855537,-460.0,0.0001784,2]
[370058063,1751869855547,-460.0,0.0001784,2]
[370058064,1751869855557,-460.0,0.0001784,2]
[370058065,1751869855567,-460.0,0.0001784,2]
[370058066,1751869855576,-462.83833115,0.0001784,2]
[370058067,1751869855585,-460.0,0.0001784,2]
[370058068,1751869855595,-460.0,0.0001784,2]
[370058069,1751869855603,-360.35976105,0.0001784,2]
[370058070,1751869855613,-460.0,0.0001784,2]
[370058071,1751869855623,-460.0,0.0001784,2]
[370058072,1751869855632,-460.0,0.0001784,2]
[370058073,1751869855642,-377.71336776,0.0001784,2]
[370058074,1751869855651,-460.0,0.0001784,2]
[370058075,1751869855660,-460.0,0.0001784,2]
[370058076,1751869855670,-364.59555588,0.0001784,2]
[370058077,1751869855679,-460.0,0.0001784,2]
[370058078,1751869855689,-460.0,0.0001784,2]
[370058079,1751869855698,-332.79740925,0.0001784,2]
[370058080,1751869855707,-460.0,0.0001784,2]
[370058081,1751869855716,-460.0,0.0001784,2]
[370058082,1751869855726,-498.40442351,0.0001784,2]
[370058083,1751869855735,-460.0,0.0001784,2]
[370058084,1751869855744,-460.0,0.0001784,2]
[370058085,1751869855753,-171.54,0.0001784,2]
[370058086,1751869855762,-500.0,0.00017921,2]
[370058087,1751869855771,-500.0,0.00017921,2]
[370058088,1751869855780,-1011.2347559,0.00017921,2]
[370058089,1751869855790,-1000.0,0.00017921,2]
[370058090,1751869855799,-504.42981492,0.00017921,2]
[370058091,1751869855808,-1000.0,0.00017921,2]
[370058092,1751869855817,-1007.31039173,0.00017921,2]
[370058093,1751869855826,-1000.0,0.00017921,2]
[370058094,1751869855836,-1004.94424202,0.00017921,2]
[370058095,1751869855845,-1002.70062991,0.00017921,2]
[370058096,1751869855855,-1002.06096947,0.00017921,2]
[370058097,1751869855864,-1003.56445955,0.00017921,2]
[370058098,1751869855873,-1000.0,0.00017921,2]
[370058099,1751869855883,-1443.06046608,0.00018052,2]
[370058100,1751869855892,-460.0,0.00018111,2]
[370058101,1751869855901,-224.98,0.00018111,2]
[370058102,1751869855910,-460.0,0.00018111,2]
[370058103,1751869855919,-460.0,0.00018111,2]
[370058104,1751869855928,-460.0,0.00018111,2]
[370058105,1751869855938,-460.0,0.00018111,2]
[370058106,1751869855947,-460.0,0.00018111,2]
[370058107,1751869855957,-460.0,0.00018111,2]
[370058108,1751869855972,-831.93,0.00018111,2]
[370058109,1751869855981,-846.06,0.00018111,2]
[370058110,1751869855990,-460.0,0.00018111,2]
[370058111,1751869856000,-460.0,0.00018111,2]
[370058112,1751869856009,-460.0,0.00018111,2]
[370058113,1751869856018,-460.0,0.00018111,2]
[370058114,1751869856028,-470.69520655,0.00018111,2]
[370058115,1751869856038,-460.0,0.00018111,2]
[370058116,1751869856047,-273.14764715,0.00018111,2]
[370058117,1751869856056,-540.96,0.00018111,2]
[370058118,1751869856065,-460.0,0.00018111,2]
[370058119,1751869856075,-460.0,0.00018111,2]
[370058120,1751869856084,-460.0,0.00018111,2]
[370058121,1751869856093,-703.74,0.00018111,2]
[370058122,1751869856103,-460.0,0.00018111,2]
[370058123,1751869856113,-460.0,0.00018112,2]
[370058124,1751869856122,-460.0,0.00018112,2]
[370058125,1751869856132,-460.0,0.00018112,2]
[370058126,1751869856141,-506.89092991,0.00018112,2]
[370058127,1751869856150,-460.0,0.00018112,2]
[370058128,1751869856159,-460.0,0.00018112,2]
[370058129,1751869856168,-467.79096484,0.00018112,2]
[370058130,1751869856178,-460.0,0.00018112,2]
[370058131,1751869856187,-460.0,0.00018112,2]
[370058132,1751869856196,-460.0,0.00018112,2]
[370058133,1751869856206,-460.0,0.00018112,2]
[370058134,1751869856215,-209.56,0.00018112,2]
[370058135,1751869856224,-460.0,0.00018112,2]
[370058136,1751869856233,-468.20059114,0.00018112,2]
[370058137,1751869856242,-460.0,0.00018112,2]
[370058138,1751869856252,-460.0,0.00018112,2]
[370058139,1751869856261,-536.15660531,0.00018112,2]
[370058140,1751869856270,-460.0,0.00018112,2]
[370058141,1751869856279,-460.0,0.00018112,2]
[370058142,1751869856288,-241.23965697,0.00018112,2]
[370058143,1751869856298,-397.92,0.00018112,2]
[370058144,1751869856308,-460.0,0.00018112,2]
[370058145,1751869856317,-460.0,0.00018112,2]
[370058146,1751869856326,-460.0,0.00018112,2]
[370058147,1751869856336,-460.0,0.00018112,2]
[370058148,1751869856345,-466.16,0.00018112,2]
[370058149,1751869856354,-460.0,0.00018112,2]
[370058150,1751869856364,-460.0,0.00018112,2]
[370058151,1751869856374,-460.0,0.00018112,2]
[370058152,1751869856384,-460.0,0.00018112,2]
[370058153,1751869856393,-460.0,0.00018112,2]
[370058154,1751869856402,-542.74,0.00018112,2]
[370058155,1751869856411,-460.0,0.00018112,2]
[370058156,1751869856421,-460.0,0.00018112,2]
[370058157,1751869856431,-460.0,0.00018112,2]
[370058158,1751869856440,-362.36351829,0.00018112,2]
[370058159,1751869856449,-460.0,0.00018112,2]
[370058160,1751869856458,-229.53710527,0.00018112,2]
[370058161,1751869856467,-460.0,0.00018112,2]
[370058162,1751869856477,-460.0,0.00018112,2]
[370058163,1751869856486,-282.23087998,0.00018112,2]
[370058164,1751869856496,-405.31804853,0.00018112,2]
[370058165,1751869856505,-460.0,0.00018112,2]
[370058166,1751869856514,-460.0,0.00018112,2]
[370058167,1751869856524,-415.84,0.00018112,2]
[370058168,1751869856533,-460.0,0.00018113,2]
[370058169,1751869856542,-467.04869053,0.00018113,2]
[370058170,1751869856551,-272.97193784,0.00018113,2]
[370058171,1751869856560,-460.0,0.00018113,2]
[370058172,1751869856569,-460.0,0.00018113,2]
[370058173,1751869856657,-460.0,0.00018113,2]
[370058174,1751869856667,-460.0,0.00018113,2]
[370058175,1751869856676,-463.13612911,0.00018113,2]
[370058176,1751869856686,-460.0,0.00018113,2]
[370058177,1751869856695,-460.0,0.00018113,2]
[370058178,1751869856704,-550.2039513,0.00018113,2]
[370058179,1751869856713,-490.54,0.00018113,2]
[370058180,1751869856722,-460.0,0.00018113,2]
[370058181,1751869856731,-460.0,0.00018113,2]
[370058182,1751869856740,-460.0,0.00018113,2]
[370058183,1751869856750,-460.0,0.00018113,2]
[370058184,1751869856761,-259.73067304,0.00018113,2]
[370058185,1751869856770,-326.12340586,0.00018113,2]
[370058186,1751869856779,-460.0,0.00018113,2]
[370058187,1751869856788,-403.76294212,0.00018113,2]
[370058188,1751869856797,-460.0,0.00018113,2]
[370058189,1751869856806,-460.0,0.00018113,2]